fUST/lending_fUST_20240910
["ID","MTS","AMOUNT","RATE_DAILY","PERIOD"]
[337687917,1725961558831,-500.0,0.0001994,2]
[337687918,1725961558855,-666.24,0.0001994,2]
[337687919,1725961558878,-500.0,0.0001994,2]
[337687920,1725961558901,-501.38024526,0.0001994,2]
[337687921,1725961558924,-500.0,0.0001994,2]
[337687922,1725961558949,-500.0,0.0001994,2]
[337687923,1725961558974,-502.3264005,0.0001994,2]
[337687924,1725961558997,-500.0,0.0001994,2]
[337687925,1725961559020,-327.08946644,0.0001994,2]
[337687926,1725961559043,-500.0,0.0001994,2]
[337687927,1725961559067,-500.0,0.0001994,2]
[337687928,1725961559090,-716.0,0.0001994,2]
[337687929,1725961559113,-796.14,0.0001994,2]
[337687930,1725961559137,-500.0,0.0001994,2]
[337687931,1725961559160,-500.81977298,0.0001994,2]
[337687932,1725961559185,-500.83261335,0.0001994,2]
[337687933,1725961559209,-500.0,0.0001994,2]
[337687934,1725961559233,-500.0,0.0001994,2]
[337687935,1725961559256,-500.0,0.0001994,2]
[337687936,1725961559280,-500.0,0.0001994,2]
[337687937,1725961559304,-500.0,0.0001994,2]
[337687938,1725961559327,-500.0,0.0001994,2]
[337687939,1725961559352,-500.0,0.0001994,2]
[337687940,1725961559376,-500.0,0.0001994,2]
[337687941,1725961559400,-506.60787926,0.0001994,2]
[337687942,1725961559428,-620.3,0.0001994,2]
[337687943,1725961559454,-500.0,0.0001994,2]
[337687944,1725961559479,-500.0,0.0001994,2]
[337687945,1725961559504,-500.0,0.0001994,2]
[337687946,1725961559527,-501.39781411,0.0001994,2]
[337687947,1725961559550,-500.0,0.0001994,2]
[337687948,1725961559572,-163.555593,0.0001994,2]
[337687949,1725961559595,-504.22333173,0.0001994,2]
[337687950,1725961559619,-500.0,0.0001994,2]
[337687951,1725961559642,-500.0,0.0001994,2]
[337687952,1725961559664,-500.0,0.0001994,2]
[337687953,1725961559691,-500.0,0.0001994,2]
[337687954,1725961559715,-505.34196076,0.0001994,2]
[337687955,1725961559738,-648.28,0.0001994,2]
[337687956,1725961559760,-500.0,0.0001994,2]
[337687957,1725961559784,-500.0,0.0001994,2]
[337687958,1725961559808,-415.6321159,0.0001994,2]
[337687959,1725961559833,-500.0,0.0001994,2]
[337687960,1725961559858,-500.0,0.0001994,2]
[337687961,1725961559882,-500.0,0.0001994,2]
[337687962,1725961559906,-503.10018655,0.0001994,2]
[337687963,1725961559930,-449.09571719,0.0001994,2]
[337687964,1725961559955,-500.0,0.0001994,2]
[337687965,1725961559978,-500.0,0.0001994,2]
[337687966,1725961560001,-1628.41,0.0001994,2]
[337687967,1725961560026,-500.0,0.0001994,2]
[337687968,1725961560050,-500.0,0.0001994,2]
[337687969,1725961560074,-500.0,0.0001994,2]
[337687970,1725961560097,-500.0,0.0001994,2]
[337687971,1725961560121,-500.0,0.0001994,2]
[337687972,1725961560147,-1047.96,0.0001994,2]
[337687973,1725961560170,-500.0,0.0001994,2]
[337687974,1725961560195,-500.0,0.0001994,2]
[337687975,1725961560220,-500.0,0.0001994,2]
[337687976,1725961560244,-500.0,0.0001994,2]
[337687977,1725961560270,-180.88880559,0.0001994,2]
[337687978,1725961560294,-500.0,0.0001994,2]
[337687979,1725961560319,-1072.69,0.0001994,2]
[337687980,1725961560344,-500.0,0.0001994,2]
[337687981,1725961560368,-500.0,0.0001994,2]
[337687982,1725961560392,-500.0,0.0001994,2]
[337687983,1725961560420,-500.0,0.0001994,2]
[337687984,1725961560446,-500.0,0.0001994,2]
[337687985,1725961560472,-672.08,0.0001994,2]
[337687986,1725961560498,-500.0,0.0001994,2]
[337687988,1725961560704,-500.0,0.0001994,2]
[337687989,1725961560730,-500.0,0.0001994,2]
[337687990,1725961560754,-151.0,0.0001994,2]
[337687991,1725961560778,-151.0,0.0001994,2]
[337687992,1725961560802,-151.0,0.0001994,2]
[337687993,1725961560826,-151.0,0.0001994,2]
[337687994,1725961560849,-911.02,0.0001994,2]
[337687995,1725961560872,-151.0,0.0001994,2]
[337687996,1725961560896,-500.0,0.0001994,2]
[337687997,1725961560920,-500.0,0.0001994,2]
[337687998,1725961560946,-500.0,0.0001994,2]
[337687999,1725961560970,-500.0,0.0001994,2]
[337688000,1725961560995,-502.09432493,0.0001994,2]
[337688001,1725961561018,-500.0,0.0001994,2]
[337688002,1725961561041,-500.0,0.0001994,2]
[337688003,1725961561064,-500.0,0.0001994,2]
[337688004,1725961561088,-500.0,0.0001994,2]
[337688005,1725961561111,-500.0,0.0001994,2]
[337688006,1725961561134,-918.91,0.0001994,2]
[337688007,1725961561157,-500.0,0.0001994,2]
[337688008,1725961561180,-506.49959853,0.0001994,2]
[337688009,1725961561205,-500.0,0.0001994,2]
[337688010,1725961561227,-500.0,0.0001994,2]
[337688011,1725961561251,-1790.98,0.0001994,2]
[337688012,1725961561276,-500.0,0.0001994,2]
[337688013,1725961561299,-1044.26,0.0001994,2]
[337688014,1725961561322,-500.0,0.0001994,2]
[337688015,1725961561345,-500.0,0.0001994,2]
[337688016,1725961561370,-168.878834,0.0001994,2]
[337688017,1725961561394,-500.0,0.0001994,2]
[337688018,1725961561420,-500.0,0.0001994,2]
[337688019,1725961561444,-500.0,0.0001994,2]
[337688020,1725961561469,-1775.8,0.0001994,2]
[337688021,1725961561494,-1730.82,0.0001994,2]
[337688022,1725961561517,-2260.81,0.0001994,2]
[337688023,1725961561540,-500.0,0.0001994,2]
[337688024,1725961561566,-500.0,0.0001994,2]
[337688025,1725961561589,-501.90155463,0.0001994,2]
[337688026,1725961561613,-500.0,0.0001994,2]
[337688027,1725961561637,-565.76,0.0001994,2]
[337688028,1725961561660,-542.0485431,0.0001994,2]
[337688029,1725961561682,-503.92760834,0.0001994,2]
[337688030,1725961561708,-771.84,0.0001994,2]
[337688031,1725961561731,-500.0,0.0001994,2]
[337688032,1725961561754,-500.0,0.0001994,2]
[337688033,1725961561778,-151.0,0.0001994,2]
[337688034,1725961561802,-151.0,0.0001994,2]
[337688035,1725961561826,-151.0,0.0001994,2]
[337688036,1725961561850,-151.0,0.0001994,2]
[337688037,1725961561874,-151.0,0.0001994,2]
[337688038,1725961561898,-1644.0,0.0001994,2]
[337688039,1725961561921,-780.43,0.0001994,2]
[337688040,1725961561945,-500.0,0.0001994,2]
[337688041,1725961561969,-500.0,0.0001994,2]
[337688042,1725961561993,-500.0,0.0001994,2]
[337688043,1725961562017,-635.97728414,0.0001994,2]
[337688044,1725961562041,-500.0,0.0001994,2]
[337688045,1725961562065,-504.36644982,0.0001994,2]
[337688046,1725961562089,-500.0,0.0001994,2]
[337688047,1725961562114,-616.48,0.0001994,2]
[337688048,1725961562138,-500.0,0.0001994,2]
[337688049,1725961562163,-500.0,0.0001994,2]
[337688050,1725961562187,-500.0,0.0001994,2]
[337688051,1725961562213,-1170.014622,0.0001994,2]
[337688052,1725961562238,-1170.014622,0.0001994,2]
[337688053,1725961562264,-1710.97,0.0001994,2]
[337688054,1725961562290,-1170.014622,0.0001994,2]
[337688055,1725961562315,-1170.014622,0.0001994,2]
[337688056,1725961562340,-500.0,0.0001994,2]
[337688057,1725961562365,-1170.014622,0.0001994,2]
[337688058,1725961562389,-1170.014622,0.0001994,2]
[337688059,1725961562415,-1170.014622,0.0001994,2]
[337688060,1725961562443,-1170.01462,0.0001994,2]
[337688061,1725961562467,-500.0,0.0001994,2]
[337688062,1725961562490,-1331.44,0.0001994,2]
[337688063,1725961562514,-500.0,0.0001994,2]
[337688064,1725961562538,-500.0,0.0001994,2]
[337688065,1725961562563,-676.55,0.0001994,2]
[337688066,1725961562589,-500.0,0.0001994,2]
[337688067,1725961562613,-505.34,0.0001994,2]
[337688068,1725961562636,-500.0,0.0001994,2]
[337688069,1725961562660,-500.0,0.0001994,2]
[337688070,1725961562686,-316.87975053,0.0001994,2]
[337688071,1725961562710,-500.0,0.0001994,2]
[337688072,1725961562733,-500.0,0.0001994,2]
[337688073,1725961562757,-506.8767011,0.0001994,2]
[337688074,1725961562781,-502.43479788,0.0001994,2]
[337688075,1725961562805,-523.91519448,0.0001994,2]
[337688076,1725961562829,-503.5461941,0.0001994,2]
[337688077,1725961562854,-500.0,0.0001994,2]
[337688078,1725961562879,-500.0,0.0001994,2]
[337688079,1725961562904,-500.0,0.0001994,2]
[337688080,1725961562928,-500.0,0.0001994,2]
[337688081,1725961562956,-500.0,0.0001994,2]
[337688082,1725961562980,-500.0,0.0001994,2]
[337688083,1725961563012,-500.0,0.0001994,2]
[337688084,1725961563036,-502.34558573,0.0001994,2]
[337688085,1725961563059,-500.0,0.0001994,2]
[337688086,1725961563084,-500.0,0.0001994,2]
[337688087,1725961563108,-503.26235754,0.0001994,2]
[337688088,1725961563134,-548.39,0.0001994,2]
[337688089,1725961563158,-505.11547368,0.0001994,2]
[337688090,1725961563183,-500.0,0.0001994,2]
[337688091,1725961563207,-500.0,0.0001994,2]
[337688092,1725961563231,-284.90326521,0.0001994,2]
[337688093,1725961563256,-500.0,0.0001994,2]
[337688094,1725961563285,-500.0,0.0001994,2]
[337688095,1725961563310,-501.70109812,0.0001994,2]
[337688096,1725961563335,-506.21194666,0.0001994,2]
[337688097,1725961563360,-500.0,0.0001994,2]
[337688098,1725961563385,-589.01,0.0001994,2]
[337688099,1725961563410,-500.0,0.0001994,2]
[337688100,1725961563439,-1427.61,0.0001994,2]
[337688101,1725961563465,-500.0,0.0001994,2]
[337688102,1725961563491,-500.0,0.0001994,2]
[337688103,1725961563517,-505.77089559,0.0001994,2]
[337688104,1725961563542,-500.0,0.0001994,2]
[337688105,1725961563569,-500.0,0.0001994,2]
[337688106,1725961563594,-506.92768438,0.0001994,2]
[337688107,1725961563619,-502.92608811,0.0001994,2]
[337688108,1725961563645,-500.0,0.0001994,2]
[337688109,1725961563669,-503.01492389,0.0001994,2]
[337688110,1725961563694,-797.08,0.0001994,2]
[337688111,1725961563719,-500.0,0.0001994,2]
[337688112,1725961563943,-503.92068909,0.0001994,2]
[337688113,1725961563980,-509.34,0.0001994,2]
[337688114,1725961564006,-325.324102,0.0001994,2]
[337688115,1725961564031,-325.324102,0.0001994,2]
[337688116,1725961564055,-208.51020345,0.0001994,2]
[337688117,1725961564078,-502.90350409,0.0001994,2]
[337688118,1725961564102,-500.0,0.0001994,2]
[337688119,1725961564127,-325.324102,0.0001994,2]
[337688120,1725961564151,-325.324112,0.0001994,2]
[337688121,1725961564175,-500.0,0.0001994,2]
[337688122,1725961564200,-500.0,0.0001994,2]
[337688123,1725961564224,-500.0,0.0001994,2]
[337688124,1725961564250,-503.57061304,0.0001994,2]
[337688125,1725961564276,-1098.15,0.0001994,2]
[337688126,1725961564299,-502.05131347,0.0001994,2]
[337688127,1725961564324,-501.87386815,0.0001994,2]
[337688128,1725961564350,-151.0,0.0001994,2]
[337688129,1725961564376,-151.0,0.0001994,2]
[337688130,1725961564401,-151.0,0.0001994,2]
[337688131,1725961564431,-151.0,0.0001994,2]
[337688132,1725961564455,-500.0,0.0001994,2]
[337688133,1725961564480,-500.0,0.0001994,2]
[337688134,1725961564507,-169.054158,0.0001994,2]
[337688135,1725961564531,-818.15,0.0001994,2]
[337688136,1725961564556,-500.0,0.0001994,2]
[337688137,1725961564580,-500.0,0.0001994,2]
[337688138,1725961564603,-180.382684,0.0001994,2]
[337688139,1725961564627,-180.382684,0.0001994,2]
[337688140,1725961564650,-504.48374355,0.0001994,2]
[337688141,1725961564674,-500.0,0.0001994,2]
[337688142,1725961564698,-180.382684,0.0001994,2]
[337688143,1725961564721,-180.382676,0.0001994,2]
[337688144,1725961564745,-500.0,0.0001994,2]
[337688145,1725961564769,-500.83040021,0.0001994,2]
[337688146,1725961564793,-500.0,0.0001994,2]
[337688147,1725961564818,-500.0,0.0001994,2]
[337688148,1725961564843,-500.0,0.0001994,2]
[337688149,1725961564867,-504.42133868,0.0001994,2]
[337688150,1725961564892,-500.0,0.0001994,2]
[337688151,1725961564916,-540.85574823,0.0001994,2]
[337688152,1725961564941,-500.80439351,0.0001994,2]
[337688153,1725961564968,-508.36,0.0001994,2]
[337688154,1725961564992,-500.98855835,0.0001994,2]
[337688155,1725961565018,-502.50629704,0.0001994,2]
[337688156,1725961565042,-500.0,0.0001994,2]
[337688157,1725961565065,-500.0,0.0001994,2]
[337688158,1725961565088,-500.37811525,0.0001994,2]
[337688159,1725961565111,-500.0,0.0001994,2]
[337688160,1725961565134,-500.0,0.0001994,2]
[337688161,1725961565156,-509.65392536,0.0001994,2]
[337688162,1725961565179,-501.16493796,0.0001994,2]
[337688163,1725961565202,-500.0,0.0001994,2]
[337688164,1725961565226,-500.0,0.0001994,2]
[337688165,1725961565250,-511.69857273,0.0001994,2]
[337688166,1725961565274,-502.86048436,0.0001994,2]
[337688167,1725961565299,-907.37,0.0001994,2]
[337688168,1725961565322,-500.0,0.0001994,2]
[337688169,1725961565344,-500.0,0.0001994,2]
[337688170,1725961565368,-500.0,0.0001994,2]
[337688171,1725961565391,-500.0,0.0001994,2]
[337688172,1725961565418,-500.0,0.0001994,2]
[337688173,1725961565447,-500.0,0.0001994,2]
[337688174,1725961565473,-800.67,0.0001994,2]
[337688175,1725961565496,-500.0,0.0001994,2]
[337688176,1725961565521,-500.0,0.0001994,2]
[337688177,1725961565545,-500.0,0.0001994,2]
[337688178,1725961565569,-500.0,0.0001994,2]
[337688179,1725961565593,-500.0,0.0001994,2]
[337688180,1725961565618,-500.0,0.0001994,2]
[337688181,1725961565641,-500.0,0.0001994,2]
[337688182,1725961565665,-500.0,0.0001994,2]
[337688183,1725961565688,-500.0,0.0001994,2]
[337688184,1725961565711,-500.0,0.0001994,2]
[337688185,1725961565736,-500.0,0.0001994,2]
[337688186,1725961565761,-500.0,0.0001994,2]
[337688187,1725961565783,-1021.15,0.0001994,2]
[337688188,1725961565806,-500.0,0.0001994,2]
[337688189,1725961565846,-500.0,0.0001994,2]
[337688190,1725961565872,-500.0,0.0001994,2]
[337688191,1725961565896,-500.0,0.0001994,2]
[337688192,1725961565921,-955.84,0.0001994,2]
[337688193,1725961565945,-501.89407592,0.0001994,2]
[337688194,1725961565970,-500.0,0.0001994,2]
[337688195,1725961565994,-500.0,0.0001994,2]
[337688196,1725961566019,-1002.74,0.0001994,2]
[337688197,1725961566042,-500.0,0.0001994,2]
[337688198,1725961566070,-500.0,0.0001994,2]
[337688199,1725961566094,-1183.31,0.0001994,2]
[337688200,1725961566118,-500.0,0.0001994,2]
[337688201,1725961566142,-501.94627665,0.0001994,2]
[337688202,1725961566168,-510.99423004,0.0001994,2]
[337688203,1725961566192,-503.09004834,0.0001994,2]
[337688204,1725961566218,-78442.61,0.0001994,2]
[337688205,1725961566242,-1067.36,0.0001994,2]
[337688206,1725961566267,-500.0,0.0001994,2]
[337688207,1725961566292,-500.0,0.0001994,2]
[337688208,1725961566317,-725.99,0.0001994,2]
[337688209,1725961566343,-500.0,0.0001994,2]
[337688210,1725961566371,-501.56528618,0.0001994,2]
[337688211,1725961566396,-511.45152402,0.0001994,2]
[337688212,1725961566423,-500.0,0.0001994,2]
[337688213,1725961566448,-500.0,0.0001994,2]
[337688214,1725961566473,-500.0,0.0001994,2]
[337688215,1725961566499,-850.33,0.0001994,2]
[337688216,1725961566523,-500.0,0.0001994,2]
[337688217,1725961566553,-500.0,0.0001994,2]
[337688218,1725961566578,-500.92616293,0.0001994,2]
[337688219,1725961566603,-737.57,0.0001994,2]
[337688220,1725961566629,-500.0,0.0001994,2]
[337688221,1725961566653,-503.65518906,0.0001994,2]
[337688222,1725961566678,-503.59430299,0.0001994,2]
[337688223,1725961566704,-500.0,0.0001994,2]
[337688224,1725961566729,-766.38,0.0001994,2]
[337688225,1725961566755,-500.0,0.0001994,2]
[337688226,1725961566781,-501.05865038,0.0001994,2]
[337688227,1725961566807,-502.507917,0.0001994,2]
[337688228,1725961566833,-2008.37,0.0001994,2]
[337688229,1725961566857,-498.0579841,0.0001994,2]
[337688230,1725961566881,-500.0,0.0001994,2]
[337688231,1725961566908,-500.0,0.0001994,2]
[337688232,1725961567154,-513.56267429,0.0001994,2]
[337688233,1725961567180,-500.0,0.0001994,2]
[337688234,1725961567218,-2184.46,0.0001994,2]
[337688235,1725961567242,-500.0,0.0001994,2]
[337688236,1725961567270,-500.0,0.0001994,2]
[337688237,1725961567296,-500.0,0.0001994,2]
[337688238,1725961567322,-500.0,0.0001994,2]
[337688239,1725961567348,-500.0,0.0001994,2]
[337688240,1725961567374,-230.5802708,0.0001994,2]
[337688241,1725961567400,-500.0,0.0001994,2]
[337688242,1725961567431,-500.0,0.0001994,2]
[337688243,1725961567456,-198.97782635,0.0001994,2]
[337688244,1725961567482,-500.0,0.0001994,2]
[337688245,1725961567509,-4017.97,0.0001994,2]
[337688246,1725961567534,-189.70152103,0.0001994,2]
[337688247,1725961567558,-500.0,0.0001994,2]
[337688248,1725961567582,-500.0,0.0001994,2]
[337688249,1725961567606,-500.56147538,0.0001994,2]
[337688250,1725961567629,-500.0,0.0001994,2]
[337688251,1725961567653,-500.0,0.0001994,2]
[337688252,1725961567677,-500.0,0.0001994,2]
[337688253,1725961567702,-500.0,0.0001994,2]
[337688254,1725961567725,-500.0,0.0001994,2]
[337688255,1725961567749,-500.0,0.0001994,2]
[337688256,1725961567773,-501.23196025,0.0001994,2]
[337688257,1725961567797,-502.98057109,0.0001994,2]
[337688258,1725961567822,-500.0,0.0001994,2]
[337688259,1725961567846,-1349.51,0.0001994,2]
[337688260,1725961567870,-500.0,0.0001994,2]
[337688261,1725961567906,-500.0,0.0001994,2]
[337688262,1725961567935,-500.0,0.0001994,2]
[337688263,1725961567962,-500.0,0.0001994,2]
[337688264,1725961567988,-500.0,0.0001994,2]
[337688265,1725961568014,-747.9,0.0001994,2]
[337688266,1725961568039,-500.0,0.0001994,2]
[337688267,1725961568064,-532.27,0.0001994,2]
[337688268,1725961568090,-500.0,0.0001994,2]
[337688269,1725961568114,-890.92,0.0001994,2]
[337688270,1725961568140,-509.47086203,0.0001994,2]
[337688271,1725961568166,-949.48,0.0001994,2]
[337688272,1725961568191,-1409.29,0.0001994,2]
[337688273,1725961568215,-500.0,0.0001994,2]
[337688274,1725961568241,-1023.35,0.0001994,2]
[337688275,1725961568266,-500.0,0.0001994,2]
[337688276,1725961568292,-1173.39,0.0001994,2]
[337688277,1725961568317,-766.34,0.0001994,2]
[337688278,1725961568343,-883.2,0.0001994,2]
[337688279,1725961568368,-500.0,0.0001994,2]
[337688280,1725961568392,-500.0,0.0001994,2]
[337688281,1725961568419,-925.19,0.0001994,2]
[337688282,1725961568444,-500.0,0.0001994,2]
[337688283,1725961568471,-500.0,0.00019973,2]
[337688284,1725961568496,-200.0,0.00019973,2]
[337688285,1725961568522,-374.48706196,0.00019973,2]
[337688286,1725961568547,-253.81245133,0.00019973,2]
[337688287,1725961568573,-500.0,0.00019973,2]
[337688288,1725961568599,-500.0,0.00019973,2]
[337688289,1725961568629,-338.58148259,0.00019973,2]
[337688290,1725961568655,-500.0,0.00019973,2]
[337688291,1725961568680,-500.0,0.00019973,2]
[337688292,1725961568717,-500.0,0.00019973,2]
[337688293,1725961568745,-500.0,0.00019973,2]
[337688294,1725961568774,-500.0,0.00019973,2]
[337688295,1725961568799,-500.0,0.00019973,2]
[337688296,1725961568824,-500.0,0.00019973,2]
[337688297,1725961568849,-500.0,0.00019973,2]
[337688298,1725961568874,-500.0,0.00019973,2]
[337688299,1725961568900,-151.0,0.00019994,2]
[337688300,1725961568925,-236.667542,0.00019994,2]
[337688301,1725961568950,-151.0,0.00019994,2]
[337688302,1725961568975,-151.0,0.00019994,2]
[337688303,1725961569000,-151.0,0.00019994,2]
[337688304,1725961569026,-151.0,0.00019994,2]
[337688305,1725961569051,-998.90631029,0.00019995,2]
[337688306,1725961569075,-151.0,0.00019995,2]
[337688307,1725961569100,-151.0,0.00019995,2]
[337688308,1725961569125,-153.232252,0.00019995,2]
[337688309,1725961569150,-153.232252,0.00019995,2]
[337688310,1725961569175,-153.232252,0.00019995,2]
[337688311,1725961569204,-153.232252,0.00019995,2]
[337688312,1725961569233,-151.0,0.00019995,2]
[337688313,1725961569257,-151.0,0.00019995,2]
[337688314,1725961569284,-152.08825,0.00019995,2]
[337688315,1725961569310,-151.0,0.00019995,2]
[337688316,1725961569336,-500.0,0.00019996,2]
[337688317,1725961569363,-500.0,0.00019996,2]
[337688318,1725961569389,-500.0,0.00019996,2]
[337688319,1725961569416,-151.0,0.00019996,2]
[337688320,1725961569443,-153.232252,0.00019996,2]
[337688321,1725961569477,-153.232252,0.00019996,2]
[337688322,1725961569504,-151.0,0.00019996,2]
[337688323,1725961569530,-1047.96,0.00019996,2]
[337688324,1725961569557,-1047.96,0.00019996,2]
[337688325,1725961569583,-1047.96,0.00019996,2]
[337688326,1725961569608,-500.0,0.00019996,2]
[337688327,1725961569633,-570.20332076,0.00019996,2]
[337688328,1725961569658,-500.0,0.00019996,2]
[337688329,1725961569683,-500.0,0.00019996,2]
[337688330,1725961569709,-500.0,0.00019996,2]
[337688331,1725961569733,-589.01,0.00019996,2]
[337688332,1725961569758,-589.01,0.00019996,2]
[337688333,1725961569783,-589.01,0.00019996,2]
[337688334,1725961569808,-520.95,0.00019996,2]
[337688335,1725961569832,-500.0,0.00019996,2]
[337688336,1725961569857,-500.0,0.00019996,2]
[337688337,1725961569882,-500.0,0.00019996,2]
[337688338,1725961569906,-500.0,0.00019997,2]
[337688339,1725961569931,-1047.96,0.00019997,2]
[337688340,1725961569956,-151.0,0.00019997,2]
[337688341,1725961569980,-162.0095,0.00019997,2]
[337688342,1725961570003,-500.0,0.00019997,2]
[337688343,1725961570026,-589.01,0.00019997,2]
[337688344,1725961570051,-520.95,0.00019997,2]
[337688345,1725961570076,-520.95,0.00019997,2]
[337688346,1725961570100,-520.95,0.00019997,2]
[337688347,1725961570299,-527.81934227,0.00019997,2]
[337688348,1725961570324,-1586.18,0.00019997,2]
[337688349,1725961570347,-501.48539402,0.00019997,2]
[337688350,1725961570373,-7954.34,0.00019997,2]
[337688351,1725961570396,-1094.82,0.00019997,2]
[337688352,1725961570423,-1809.76,0.00019997,2]
[337688353,1725961570450,-500.0,0.00019997,2]
[337688354,1725961570475,-874.7,0.00019997,2]
[337688355,1725961570501,-500.0,0.00019997,2]
[337688356,1725961570526,-691.47,0.00019997,2]
[337688357,1725961570551,-500.0,0.00019998,2]
[337688358,1725961570575,-500.0,0.00019998,2]
[337688359,1725961570599,-531.55186902,0.00019998,2]
[337688360,1725961570623,-151.0,0.00019998,2]
[337688361,1725961570646,-151.0,0.00019998,2]
[337688362,1725961570671,-151.0,0.00019998,2]
[337688363,1725961570695,-153.232252,0.00019998,2]
[337688364,1725961570722,-153.232252,0.00019998,2]
[337688365,1725961570746,-153.232252,0.00019998,2]
[337688366,1725961570770,-153.232252,0.00019998,2]
[337688367,1725961570793,-153.232252,0.00019998,2]
[337688368,1725961570817,-153.232252,0.00019998,2]
[337688369,1725961570840,-152.196695,0.00019998,2]
[337688370,1725961570863,-1047.96,0.00019998,2]
[337688371,1725961570886,-1047.96,0.00019998,2]
[337688372,1725961570910,-1047.96,0.00019998,2]
[337688373,1725961570934,-1047.96,0.00019998,2]
[337688374,1725961570959,-500.0,0.00019998,2]
[337688375,1725961570982,-500.0,0.00019998,2]
[337688376,1725961571006,-500.0,0.00019998,2]
[337688377,1725961571029,-372.56267105,0.00019998,2]
[337688378,1725961571053,-589.01,0.00019998,2]
[337688379,1725961571076,-589.01,0.00019998,2]
[337688380,1725961571099,-589.01,0.00019998,2]
[337688381,1725961571123,-589.01,0.00019998,2]
[337688382,1725961571146,-520.95,0.00019998,2]
[337688383,1725961571169,-520.95,0.00019998,2]
[337688384,1725961571191,-520.95,0.00019998,2]
[337688385,1725961571215,-520.95,0.00019998,2]
[337688386,1725961571237,-520.95,0.00019998,2]
[337688387,1725961571261,-520.95,0.00019998,2]
[337688388,1725961571287,-520.95,0.00019998,2]
[337688389,1725961571310,-520.99514731,0.00019998,2]
[337688390,1725961571332,-505.61869821,0.00019998,2]
[337688391,1725961571355,-501.10648489,0.00019999,2]
[337688392,1725961571378,-479.28602981,0.00019999,2]
[337688393,1725961571400,-507.91584002,0.00019999,2]
[337688394,1725961571425,-502.89839251,0.00019999,2]
[337688395,1725961571448,-501.7908968,0.00019999,2]
[337688396,1725961571472,-500.0,0.00019999,2]
[337688397,1725961571497,-189.229051,0.00019999,2]
[337688398,1725961571521,-189.229051,0.00019999,2]
[337688399,1725961571544,-187.977079,0.00019999,2]
[337688400,1725961571566,-500.0,0.00019999,2]
[337688401,1725961571589,-187.977079,0.00019999,2]
[337688402,1725961571612,-500.0,0.00019999,2]
[337688403,1725961571635,-151.0,0.00019999,2]
[337688404,1725961571657,-515.12231922,0.00019999,2]
[337688405,1725961571681,-500.0,0.00019999,2]
[337688406,1725961571710,-503.99604972,0.00019999,2]
[337688407,1725961571742,-153.232252,0.00019999,2]
[337688408,1725961571766,-153.232252,0.00019999,2]
[337688409,1725961571789,-153.232252,0.00019999,2]
[337688410,1725961571813,-153.232252,0.00019999,2]
[337688411,1725961571836,-153.232252,0.00019999,2]
[337688412,1725961571859,-153.232252,0.00019999,2]
[337688413,1725961571882,-153.232252,0.00019999,2]
[337688414,1725961571906,-153.232247,0.00019999,2]
[337688415,1725961571930,-500.0,0.00019999,2]
[337688416,1725961571953,-500.0,0.00019999,2]
[337688417,1725961571976,-505.74362933,0.00019999,2]